bitfinex-derivatives/quotes_ETHF0:USTF0_20230902
["timestamp","ask_amount","ask_price","bid_price","bid_amount"]
[1693662023561,0.56092062,1639.4,1639.3,9.13423648]
[1693662023767,0.56092062,1639.4,1639.3,17.68023648]
[1693662024365,2.84885062,1639.4,1639.3,17.68023648]
[1693662024571,5.13678062,1639.4,1639.3,17.68023648]
[1693662025275,5.13678062,1639.4,1639.3,15.39216648]
[1693662026973,5.13678062,1639.4,1639.3,13.10409648]
[1693662027279,4.57586,1639.4,1639.3,17.68023648]
[1693662029070,8.77915744,1639.5,1639.3,19.96830648]
[1693662029378,8.77915744,1639.5,1639.4,17.69772]
[1693662029780,13.35431744,1639.7,1639.4,17.69772]
[1693662030073,13.35431744,1639.7,1639.6,8.546]
[1693662030277,13.35431744,1639.7,1639.6,13.1213]
[1693662030473,11.06671744,1639.7,1639.6,13.1213]
[1693662030875,9.72980352,1639.7,1639.6,8.546]
[1693662031372,9.79080352,1639.7,1639.6,8.546]
[1693662031876,4.63608,1639.7,1639.6,13.1213]
[1693662032879,2.34846,1639.8,1639.6,13.1213]
[1693662033074,6.92344,1639.8,1639.7,4.55809648]
[1693662033279,9.79060352,1639.8,1639.7,4.55809648]
[1693662033681,7.50310352,1639.8,1639.7,6.84560648]
[1693662034078,4.63594,1639.8,1639.7,6.84560648]
[1693662034383,9.79060352,1639.8,1639.6,15.48759]
[1693662034580,12.07810352,1639.8,1639.6,8.546]
[1693662035678,20.62410352,1639.8,1639.4,15.48822]
[1693662035885,8.78766413,1639.5,1639.4,15.48822]
[1693662036078,13.36324413,1639.5,1639.4,20.04631648]
[1693662036980,4.57558,1639.5,1639.4,20.04631648]
[1693662037280,4.57558,1639.5,1639.4,10.9124]
[1693662037281,9.73053352,1639.5,1639.4,10.9124]
[1693662037787,9.73053352,1639.5,1639.4,13.20056]
[1693662037975,9.73053352,1639.5,1639.4,10.9124]
[1693662038286,6.86337,1639.5,1639.4,13.20056]
[1693662045796,6.92426,1639.6,1639.4,20.06435]
[1693662045997,0.061,1639.6,1639.5,10.81593648]
[1693662046198,0.061,1639.6,1639.5,17.67930648]
[1693662047398,0.061,1639.6,1639.5,14.62630648]
[1693662048801,2.34865,1639.6,1639.5,14.62630648]
[1693662049399,0.061,1639.6,1639.5,14.62630648]
[1693662049996,2.34865,1639.6,1639.5,14.62630648]
[1693662050600,4.6363,1639.6,1639.5,14.62630648]
[1693662051104,2.34865,1639.6,1639.5,14.62630648]
[1693662051906,0.061,1639.6,1639.5,14.62630648]
[1693662053207,0.081,1639.6,1639.5,14.62630648]
[1693662054600,2.36863,1639.6,1639.5,14.62630648]
[1693662054802,0.081,1639.6,1639.5,14.62630648]
[1693662057499,8.80617668,1639.6,1639.5,16.91409648]
[1693662061309,0.02,1639.6,1639.5,16.91409648]
[1693662063410,8.80617668,1639.6,1639.5,16.91409648]
[1693662064210,0.02,1639.6,1639.5,16.91409648]
[1693662065702,0.02,1639.6,1639.5,22.40709648]
[1693662066311,8.80617668,1639.6,1639.5,22.40709648]
[1693662075022,0.02,1639.6,1639.5,22.40709648]
[1693662080026,8.78617668,1639.8,1639.6,2.28816]
[1693662080218,8.78617668,1639.8,1639.7,16.91289648]
[1693662080415,8.78617668,1639.8,1639.7,19.40539648]
[1693662080725,8.78617668,1639.8,1639.7,21.69355648]
[1693662081324,4.6352,1640.0,1639.9,5.493]
[1693662081526,2.34808,1640.0,1639.9,22.40572648]
[1693662081722,0.061,1640.0,1639.9,22.40572648]
[1693662082327,0.061,1640.0,1639.9,24.69293648]
[1693662083832,9.78937352,1640.0,1639.9,14.62551648]
[1693662084035,9.78937352,1640.0,1639.9,7.78021]
[1693662084237,9.78937352,1640.0,1639.9,10.06742]
[1693662084631,9.78937352,1640.0,1639.9,12.35558]
[1693662084830,0.061,1640.0,1639.9,16.93]
[1693662085030,2.34807,1640.0,1639.9,16.93]
[1693662085328,0.061,1640.0,1639.9,16.93]
[1693662085727,9.86738581,1640.1,1639.9,16.93]
[1693662085928,13.781,1640.4,1640.2,4.57358]
[1693662085929,5.74523161,1640.4,1640.2,4.57358]
[1693662086134,5.74523161,1640.4,1640.3,14.64114]
[1693662086135,6.85982,1640.4,1640.3,14.64114]
[1693662086332,6.85982,1640.4,1640.3,16.91107648]
[1693662086936,6.85982,1640.4,1640.3,14.62439648]
[1693662087238,6.85982,1640.4,1640.3,10.05109648]
[1693662087438,6.85982,1640.4,1640.3,12.33774648]
[1693662087630,6.85982,1640.4,1640.3,10.05109648]
[1693662088030,7.35420586,1640.4,1640.3,12.33774648]
[1693662088741,7.35420586,1640.4,1640.3,10.05109648]
[1693662088940,9.64083586,1640.4,1640.3,10.05109648]
[1693662089142,9.64083586,1640.4,1640.3,12.33774648]
[1693662089841,7.35420586,1640.4,1640.3,14.62439648]
[1693662090141,7.35420586,1640.4,1640.3,12.33774648]
[1693662090341,9.64083586,1640.4,1640.3,7.78116]
[1693662090734,12.50799938,1640.4,1640.3,7.78116]
[1693662090940,12.56889938,1640.4,1640.3,7.78116]
[1693662091340,9.70173586,1640.4,1640.3,7.78116]
[1693662092545,9.70173586,1640.4,1640.3,10.06781]
[1693662092946,9.70173586,1640.4,1640.3,7.78116]
[1693662093447,12.56889938,1640.4,1640.3,7.78116]
[1693662093648,9.70173586,1640.4,1640.3,7.78116]
[1693662094042,12.56889938,1640.4,1640.3,7.78116]
[1693662094645,12.56889938,1640.4,1640.3,5.493]
[1693662094846,9.70173586,1640.4,1640.3,7.78116]
[1693662095348,0.55528586,1640.4,1640.3,7.78116]
[1693662096143,3.42244938,1640.4,1640.3,5.493]
[1693662096343,3.42244938,1640.4,1640.3,7.78116]
[1693662096647,3.36154938,1640.4,1640.3,7.78116]
[1693662097048,0.49438586,1640.4,1640.3,7.78116]
[1693662097348,0.0609,1640.5,1640.3,7.78116]
[1693662097549,0.0609,1640.5,1640.4,5.493]
[1693662097842,2.92806352,1640.5,1640.4,5.493]
[1693662099440,0.54561388,1640.5,1640.4,5.493]
[1693662099639,0.54561388,1640.5,1640.4,7.76293648]
[1693662102848,3.4127774,1640.5,1640.4,7.76293648]
[1693662103752,0.54561388,1640.5,1640.4,7.76293648]
[1693662104252,3.4127774,1640.5,1640.4,7.76293648]
[1693662104849,3.4127774,1640.5,1640.4,5.493]
[1693662107046,0.54561388,1640.5,1640.4,5.493]
[1693662107252,0.54561388,1640.5,1640.4,7.9588]
[1693662108953,3.4127774,1640.5,1640.4,7.9588]
[1693662110452,3.4127774,1640.5,1640.3,5.493]
[1693662111259,12.18528803,1640.5,1640.3,5.493]
[1693662111552,13.35681494,1640.5,1640.3,5.493]
[1693662115857,8.77251063,1640.4,1640.3,5.493]
[1693662118757,3.4127774,1640.5,1640.3,5.493]
[1693662120658,3.4127774,1640.5,1640.4,2.5793]
[1693662121856,8.9057774,1640.5,1640.4,2.5793]
[1693662122559,8.9057774,1640.5,1640.4,2.32137001]
[1693662126268,20.3376774,1640.5,1640.4,2.32137001]
[1693662126563,21.50920431,1640.5,1640.4,2.32137001]
[1693662130764,21.50920431,1640.5,1640.4,1.83233301]
[1693662130965,31.096297,1640.5,1640.4,1.83233301]
[1693662132860,21.50920431,1640.5,1640.4,1.83233301]
[1693662133871,20.3376774,1640.5,1640.4,1.83233301]
[1693662134064,21.50920431,1640.5,1640.4,1.83233301]
[1693662135568,21.50920431,1640.5,1640.4,1.34375504]
[1693662137469,21.50920431,1640.5,1640.4,1.40475504]
[1693662137663,21.51920431,1640.5,1640.4,1.40475504]
[1693662138666,21.51920431,1640.5,1640.4,0.46417954]
[1693662138868,16.02620431,1640.5,1640.4,8.24533954]
[1693662139064,24.4524,1640.5,1640.4,5.95717954]
[1693662139271,25.62392691,1640.5,1640.4,5.95717954]
[1693662140170,25.62392691,1640.5,1640.4,8.24533954]
[1693662140372,22.75676339,1640.5,1640.4,8.24533954]
[1693662140567,25.62392691,1640.5,1640.4,5.95717954]
[1693662141072,16.02620431,1640.5,1640.4,5.95717954]
[1693662141268,14.8546774,1640.5,1640.4,5.95717954]
[1693662141970,14.8546774,1640.5,1640.4,2.75233954]
[1693662142269,16.02620431,1640.5,1640.4,0.46417954]
[1693662143474,13.67892431,1640.5,1640.4,0.46417954]
[1693662143673,12.5073974,1640.5,1640.4,0.46417954]
[1693662144063,13.67892431,1640.5,1640.4,0.46417954]
[1693662145073,12.5073974,1640.5,1640.4,2.75233954]
[1693662145677,9.64023388,1640.5,1640.4,2.75233954]
[1693662145874,16.95248132,1640.5,1640.4,8.24533954]
[1693662146074,16.95248132,1640.5,1640.4,10.53185954]
[1693662146478,16.95248132,1640.5,1640.4,12.81837954]
[1693662146778,19.81964484,1640.5,1640.4,10.06604]
[1693662146980,16.95248132,1640.5,1640.4,13.11660594]
[1693662147284,19.81964484,1640.5,1640.4,6.25704594]
[1693662147873,19.81964484,1640.5,1640.4,10.83008594]
[1693662148877,19.81964484,1640.5,1640.4,8.54356594]
[1693662149279,19.81964484,1640.5,1640.4,10.83010594]
[1693662149678,16.95248132,1640.5,1640.4,10.83010594]
[1693662150075,19.81964484,1640.5,1640.4,10.83010594]
[1693662150478,19.81964484,1640.5,1640.4,8.54356594]
[1693662150877,32.16702484,1640.5,1640.3,5.00290341]
[1693662151082,16.66452691,1640.4,1640.1,1.8714]
[1693662151374,12.01380352,1640.3,1640.2,0.76404594]
[1693662151580,9.72714352,1640.3,1640.2,3.05083594]
[1693662151778,9.72714352,1640.3,1640.2,2.28679]
[1693662151978,12.01380352,1640.3,1640.2,5.493]
[1693662152779,9.72714352,1640.3,1640.2,5.493]
[1693662152981,12.01380352,1640.3,1640.2,5.493]
[1693662153280,9.72714352,1640.3,1640.2,5.493]
[1693662153482,9.72714352,1640.3,1640.2,10.83062594]
[1693662153483,6.85995,1640.3,1640.2,10.83062594]
[1693662153981,9.1466,1640.3,1640.2,6.25704594]
[1693662154371,6.85995,1640.3,1640.2,8.54383594]
[1693662154580,4.5733,1640.3,1640.2,10.83062594]
[1693662155280,4.5733,1640.3,1640.2,8.54383594]
[1693662155481,6.85996,1640.3,1640.2,8.54383594]
[1693662155882,9.14662,1640.3,1640.2,6.25704594]
[1693662156084,9.14662,1640.3,1640.2,3.33664594]
[1693662156284,12.01378352,1640.3,1640.2,3.33664594]
[1693662157277,6.85996,1640.3,1640.2,5.62343594]
[1693662157474,6.85996,1640.3,1640.2,3.33664594]
[1693662157677,9.72712352,1640.3,1640.2,2.5726]
[1693662157879,12.01378352,1640.3,1640.2,2.77430235]
[1693662158387,12.01378352,1640.3,1640.2,2.5726]
[1693662159079,9.14662,1640.3,1640.2,2.77430235]
[1693662160180,12.01378352,1640.3,1640.2,2.77430235]
[1693662160580,9.14662,1640.3,1640.2,2.77430235]
[1693662161680,14.17180744,1640.4,1640.2,12.84088235]
[1693662161877,16.45843744,1640.4,1640.3,7.76293648]
[1693662162080,16.45843744,1640.4,1640.3,12.33625648]
[1693662162382,14.17180744,1640.4,1640.3,17.20111648]
[1693662163387,4.57318,1640.4,1640.3,17.20111648]
[1693662165586,4.57318,1640.4,1640.3,15.48100484]
[1693662168086,2.28656,1640.4,1640.3,15.48100484]
[1693662168886,2.28654,1640.4,1640.3,15.48100484]
[1693662169077,4.57308,1640.4,1640.3,15.48100484]
[1693662170092,6.85962,1640.4,1640.3,15.48100484]
[1693662172592,9.72678352,1640.4,1640.3,15.48100484]
[1693662173390,6.85962,1640.4,1640.3,15.48100484]
[1693662173693,9.72678352,1640.4,1640.3,11.64624436]
[1693662174085,9.72678352,1640.4,1640.3,11.84794671]
[1693662174886,9.72678352,1640.4,1640.3,7.07292436]
[1693662175083,9.72678352,1640.4,1640.3,9.35958436]
[1693662176087,9.72678352,1640.4,1640.3,11.64626436]
[1693662179093,6.85962,1640.4,1640.3,11.84800671]
[1693662179291,9.72678352,1640.4,1640.3,11.84800671]
[1693662179492,9.72678352,1640.4,1640.3,11.64630436]
[1693662179995,9.72678352,1640.4,1640.3,9.06810436]
[1693662180893,6.85962,1640.4,1640.3,6.98308671]
[1693662181098,14.66623132,1640.5,1640.3,13.84324671]
[1693662181300,14.66623132,1640.5,1640.4,7.76293648]
[1693662181597,14.66623132,1640.5,1640.4,17.06037648]
[1693662181800,14.66623132,1640.5,1640.4,19.47597648]
[1693662182899,5.06760388,1640.5,1640.4,19.47597648]
[1693662183900,5.12860388,1640.5,1640.4,19.47597648]
[1693662186395,12.5688074,1640.5,1640.4,2.28659]
[1693662186600,12.5688074,1640.5,1640.3,10.06638]
[1693662186801,2.26993648,1640.4,1640.3,10.06638]
[1693662186997,9.12970648,1640.4,1640.3,10.06638]
[1693662187802,9.12970648,1640.4,1640.3,7.77966]
[1693662188797,9.12970648,1640.4,1640.3,5.493]
[1693662189002,11.41629648,1640.4,1640.3,5.493]
[1693662189793,11.41629648,1640.4,1640.3,7.77972]
[1693662190095,11.41629648,1640.4,1640.3,5.493]
[1693662190292,11.41629648,1640.4,1640.3,7.77972]
[1693662190491,11.41629648,1640.4,1640.3,5.493]
[1693662190891,11.41629648,1640.4,1640.0,9.6642]
[1693662191096,16.90929648,1640.4,1640.1,7.78]
[1693662191302,0.061,1640.2,1640.1,10.06701]
[1693662191503,9.19154648,1640.2,1640.1,7.78]
[1693662191795,9.19154648,1640.2,1640.1,10.06701]
[1693662192002,0.061,1640.1,1640.0,2.28708]
[1693662192191,6.92245,1640.0,1639.9,12.35466]
[1693662192395,9.19238648,1640.0,1639.9,10.06742]
[1693662192603,11.47953648,1640.0,1639.8,15.18356]
[1693662192803,2.86716352,1639.9,1639.8,15.18356]
[1693662193000,9.72900352,1639.9,1639.8,15.18356]
[1693662193601,9.79000352,1639.9,1639.8,7.78037]
[1693662194603,9.79000352,1639.9,1639.8,10.06779]
[1693662196498,12.07728352,1639.9,1639.8,7.78037]
[1693662196704,12.07728352,1639.9,1639.8,5.493]
[1693662196905,0.061,1639.8,1639.7,6.86247]
[1693662197103,9.19319648,1639.8,1639.7,12.35547]
[1693662197303,9.19319648,1639.8,1639.7,10.26965235]
[1693662197500,11.48061648,1639.8,1639.7,5.493]
[1693662198405,11.49061648,1639.8,1639.7,5.003]
[1693662199098,11.49061648,1639.8,1639.7,7.29056]
[1693662199901,11.49061648,1639.8,1639.7,7.49226235]
[1693662200101,11.49061648,1639.8,1639.7,9.77982235]
[1693662200299,11.49061648,1639.8,1639.7,9.57812]
[1693662200499,11.49061648,1639.8,1639.7,7.29056]
[1693662201208,11.49061648,1639.8,1639.7,5.003]
[1693662201910,11.49061648,1639.8,1639.6,15.18405]
[1693662202110,2.86716352,1639.7,1639.6,15.18405]
[1693662202310,9.72984352,1639.7,1639.6,15.18405]
[1693662203207,0.061,1639.6,1639.5,6.86331]
[1693662203411,9.19403648,1639.6,1639.5,4.57552]
[1693662204406,9.19403648,1639.6,1639.5,4.77722235]
[1693662204610,9.19403648,1639.6,1639.5,7.06506235]
[1693662204810,9.19403648,1639.6,1639.5,6.86336]
[1693662205613,6.90633648,1639.6,1639.5,6.86336]
[1693662205810,9.19403648,1639.6,1639.5,6.86336]
[1693662208114,9.19403648,1639.6,1639.5,4.57552]
[1693662209612,11.48173648,1639.6,1639.5,2.28774]
[1693662210211,9.19403648,1639.6,1639.5,2.28774]
[1693662211915,14.68703648,1639.6,1639.5,4.57558]
[1693662214220,15.16731191,1639.6,1639.5,2.28774]
[1693662215110,15.16731191,1639.6,1639.5,2.28784]
[1693662215520,17.45501191,1639.6,1639.5,2.28784]
[1693662215719,15.16731191,1639.6,1639.5,2.28784]
[1693662216125,17.45501191,1639.6,1639.5,2.28784]
[1693662216420,2.86716352,1639.5,1639.4,14.66786907]
[1693662216615,17.57252352,1639.5,1639.4,4.78508]
[1693662217322,17.57252352,1639.5,1639.4,7.07306]
[1693662218023,15.28468352,1639.5,1639.4,7.07306]
[1693662218623,15.28468352,1639.5,1639.4,2.28798]
[1693662219321,15.28468352,1639.5,1639.4,4.57596]
[1693662220824,4.57568,1639.5,1639.4,7.06564235]
[1693662221124,9.73068352,1639.5,1639.4,6.86394]
[1693662222226,9.73068352,1639.5,1639.4,4.57596]
[1693662224623,9.73068352,1639.5,1639.4,4.77766235]
[1693662226332,9.73068352,1639.5,1639.4,4.57596]
[1693662228629,2.33093648,1639.4,1639.0,2.28845]
[1693662228938,9.15248,1639.3,1639.1,2.28837]
[1693662229238,7.76293648,1639.2,1639.1,2.4869]
[1693662229531,16.91597648,1639.2,1639.1,2.4869]
[1693662230133,16.91597648,1639.2,1639.0,2.4566]
[1693662230340,2.86716352,1639.1,1639.0,2.4566]
[1693662230526,12.02076352,1639.1,1639.0,2.4566]
[1693662230934,9.73236352,1639.1,1639.0,7.03368]
[1693662231132,10.05126648,1639.2,1639.0,9.52392235]
[1693662231335,14.62799648,1639.2,1639.0,9.52392235]
[1693662231534,17.49516,1639.2,1639.0,9.52392235]
[1693662231931,12.00216,1639.2,1639.0,15.01692235]
[1693662232740,12.00216,1639.2,1639.0,14.81522]
[1693662233142,14.29054,1639.2,1639.0,15.01692235]
[1693662233441,9.73222352,1639.2,1639.1,6.84673648]
[1693662238243,4.57633,1639.3,1639.1,16.91653648]
[1693662238543,6.86453,1639.3,1639.2,4.77822235]
[1693662238943,6.86453,1639.3,1639.2,7.27242235]
[1693662239145,6.86453,1639.3,1639.2,4.98416235]
[1693662239541,12.01989352,1639.3,1639.2,2.69590235]
[1693662239844,12.01989352,1639.3,1639.2,2.4942]
[1693662240046,12.49897023,1639.3,1639.2,2.4942]
[1693662240645,12.49897023,1639.3,1639.2,2.69590235]
[1693662240941,12.49897023,1639.3,1639.2,2.4942]
[1693662241841,17.99197023,1639.3,1639.2,2.4942]
[1693662242642,17.99197023,1639.3,1639.2,2.69590235]
[1693662243344,17.99197023,1639.3,1639.2,2.4942]
[1693662244346,17.99197023,1639.3,1639.2,4.98416235]
[1693662244546,15.12480671,1639.3,1639.2,4.98416235]
[1693662244747,15.12480671,1639.3,1639.2,7.27242235]
[1693662245948,12.83660671,1639.3,1639.2,7.27242235]
[1693662246151,15.70377023,1639.3,1639.2,7.27242235]
[1693662247350,15.70377023,1639.3,1639.2,7.07072]
[1693662248646,15.70377023,1639.3,1639.2,7.27242235]
[1693662249351,15.70377023,1639.3,1639.2,7.07072]
[1693662249745,15.70377023,1639.3,1639.2,7.27242235]
[1693662250451,15.70377023,1639.3,1639.2,7.07072]
[1693662250646,15.70377023,1639.3,1639.2,7.27242235]
[1693662251751,12.83660671,1639.3,1639.2,7.27242235]
[1693662251946,7.34360671,1639.3,1639.2,7.27242235]
[1693662252551,10.21077023,1639.3,1639.2,7.27242235]
[1693662253153,7.34360671,1639.3,1639.2,7.27242235]
[1693662253849,0.47907671,1639.3,1639.2,11.84894235]
[1693662254043,14.77998,1639.5,1639.2,17.34194235]
[1693662254248,10.06883,1639.5,1639.4,6.86394]
[1693662254447,10.06883,1639.5,1639.4,7.06564235]
[1693662254653,10.06883,1639.5,1639.4,9.56784235]
[1693662255555,12.35679,1639.5,1639.4,9.56784235]
[1693662256550,12.35679,1639.5,1639.4,7.27986235]
[1693662258057,15.22395352,1639.5,1639.4,7.27986235]
[1693662258254,12.35679,1639.5,1639.4,7.27986235]
[1693662260158,15.22395352,1639.5,1639.4,7.27986235]
[1693662260658,12.35679,1639.5,1639.4,7.27986235]
[1693662261858,6.86379,1639.5,1639.4,7.27986235]
[1693662262855,9.73095352,1639.5,1639.4,7.27986235]
[1693662264462,6.86379,1639.5,1639.4,9.56784235]
[1693662266968,4.57583,1639.5,1639.4,9.56784235]
[1693662269960,7.44299352,1639.5,1639.4,9.56784235]
[1693662270167,4.57583,1639.5,1639.4,9.56784235]
[1693662275768,8.43957543,1639.6,1639.4,11.85582235]
[1693662275967,1.18211298,1639.8,1639.5,7.76293648]
[1693662276174,0.01,1639.8,1639.6,14.84550235]
[1693662276372,0.01,1639.8,1639.7,2.26993648]
[1693662276671,0.01,1639.8,1639.7,16.91317648]
[1693662276867,0.01,1639.8,1639.7,10.26723648]
[1693662279674,0.48607712,1639.8,1639.7,10.26723648]
[1693662289678,0.01,1639.8,1639.7,10.26723648]
[1693662297483,2.87716352,1639.8,1639.7,10.26723648]
[1693662297882,0.01,1639.8,1639.7,10.26723648]
[1693662300690,0.071,1639.8,1639.7,10.26723648]
[1693662300892,2.93816352,1639.8,1639.7,7.9973]
[1693662301100,0.071,1639.8,1639.7,5.493]
[1693662301297,8.43116352,1639.8,1639.5,5.493]
[1693662301490,0.061,1639.6,1639.5,5.493]
[1693662301886,2.92816352,1639.6,1639.4,5.493]
[1693662302090,2.33093648,1639.5,1639.4,5.493]
[1693662302291,2.33093648,1639.5,1639.4,5.69470235]
[1693662302788,2.33093648,1639.5,1639.4,5.493]
[1693662302989,2.33093648,1639.5,1639.4,5.69470235]
[1693662303888,0.061,1639.5,1639.4,5.69470235]
[1693662304095,2.6068,1639.6,1639.4,5.69470235]
[1693662304293,2.6068,1639.6,1639.5,2.26993648]
[1693662304498,0.071,1639.8,1639.5,7.76293648]
[1693662304687,2.5914,1639.8,1639.7,5.493]
[1693662304891,2.5914,1639.8,1639.7,7.76293648]
[1693662305296,0.071,1639.8,1639.7,7.76293648]
[1693662305891,0.01,1639.8,1639.7,7.76293648]
[1693662306595,13.842,1640.2,1639.9,5.493]
[1693662306792,0.061,1640.2,1640.1,5.493]
[1693662306992,2.34786,1640.2,1640.1,14.641]
[1693662307192,7.50188352,1640.2,1640.1,12.55570235]
[1693662307391,9.78874352,1640.2,1640.1,12.55570235]
[1693662307593,6.92158,1640.2,1640.1,12.55570235]
[1693662307789,7.40687222,1640.2,1640.1,12.55570235]
[1693662307994,7.40687222,1640.2,1640.1,10.26870235]
[1693662308599,10.27403574,1640.2,1640.1,10.067]
[1693662308796,10.27403574,1640.2,1640.1,10.26870235]
[1693662309100,9.69373222,1640.2,1640.1,10.06694]
[1693662309300,12.56089574,1640.2,1640.1,10.06694]
[1693662309497,12.56089574,1640.2,1640.1,10.26864235]
[1693662310400,10.27403574,1640.2,1640.1,10.26864235]
[1693662311301,7.40687222,1640.2,1640.1,12.55561235]
[1693662312493,10.27403574,1640.2,1640.1,12.55561235]
[1693662312704,7.40687222,1640.2,1640.1,12.55561235]
[1693662313107,5.12001222,1640.2,1640.1,12.55561235]
[1693662314204,7.40687222,1640.2,1640.1,12.55561235]
[1693662314598,0.061,1640.1,1640.0,6.86112]
[1693662314805,9.19181648,1640.1,1640.0,2.60434784]
[1693662316006,9.19181648,1640.1,1640.0,2.60441784]
[1693662316506,9.19181648,1640.1,1640.0,0.31731784]
[1693662325722,9.19181648,1640.1,1640.0,0.51902019]
[1693662326123,9.19181648,1640.1,1640.0,0.31731784]
[1693662332625,2.92816352,1640.0,1639.8,2.5107]
[1693662332919,11.41889648,1639.9,1639.8,5.493]
[1693662337328,11.41889648,1639.9,1639.7,5.493]
[1693662337529,2.86716352,1639.8,1639.7,7.78051]
[1693662337828,9.72930352,1639.8,1639.7,7.78051]
[1693662338328,12.01668352,1639.8,1639.7,5.493]
[1693662341229,9.72930352,1639.8,1639.7,5.493]
[1693662341531,9.72930352,1639.8,1639.7,7.78052]
[1693662342524,9.72930352,1639.8,1639.7,5.493]
[1693662343431,9.72930352,1639.8,1639.7,7.78052]
[1693662343637,9.72930352,1639.8,1639.7,5.493]
[1693662344429,9.72930352,1639.8,1639.7,7.78052]
[1693662344630,9.72930352,1639.8,1639.7,5.493]
[1693662344822,9.79030352,1639.8,1639.7,5.493]
[1693662345423,12.07768352,1639.8,1639.7,5.493]
[1693662345626,0.061,1639.6,1639.4,7.78089]
[1693662345832,9.73056352,1639.5,1639.4,5.493]
[1693662346130,9.73056352,1639.5,1639.4,7.78094]
[1693662346329,12.0005,1639.5,1639.4,7.78094]
[1693662347727,12.0615,1639.5,1639.4,5.493]
[1693662347923,12.0615,1639.5,1639.3,7.07266]
[1693662347924,0.061,1639.4,1639.3,4.78467]
[1693662348127,6.92482,1639.4,1639.3,7.07272]
[1693662350636,9.21276,1639.4,1639.2,10.0693]
[1693662350930,12.00134,1639.3,1639.2,5.493]
[1693662351634,14.28942,1639.3,1639.2,5.493]
[1693662354738,14.28942,1639.3,1639.1,9.44196]
[1693662354739,19.78242,1639.3,1639.1,4.57656]
[1693662354931,19.78242,1639.3,1639.1,2.28826]
[1693662357138,19.78242,1639.3,1639.0,12.3583]
[1693662357737,19.78242,1639.3,1639.0,5.493]
[1693662357940,5.493,1639.2,1638.9,14.96556]
[1693662358154,14.29054,1639.1,1638.9,14.96556]
[1693662358436,14.29054,1639.1,1638.9,12.67698]
[1693662358632,14.29054,1639.1,1638.9,10.3884]
[1693662358827,16.83844,1639.1,1638.9,12.67701]
[1693662359739,16.83844,1639.1,1638.9,10.3884]
[1693662359939,16.83844,1639.1,1638.9,12.67702]
[1693662361333,16.83844,1639.1,1638.9,12.67703]
[1693662361938,16.83844,1639.1,1638.9,10.3884]
[1693662362336,22.33144,1639.1,1638.9,4.8954]
[1693662363338,22.33144,1639.1,1638.9,7.18401]
[1693662363543,4.57656,1639.2,1639.0,0.20170235]
[1693662363742,4.57631,1639.3,1639.1,14.64644]
[1693662363937,4.57631,1639.3,1639.2,5.493]
[1693662364136,7.44347352,1639.3,1639.2,12.35766]
[1693662364338,7.44347352,1639.3,1639.2,14.82929883]
[1693662365736,2.28814,1639.3,1639.2,14.82929883]
[1693662367743,5.11922604,1639.4,1639.2,14.82929883]
[1693662367944,2.28808,1639.3,1639.2,14.82929883]
[1693662368143,2.28808,1639.3,1639.2,17.41639883]
[1693662369346,7.44332352,1639.3,1639.2,17.41639883]
[1693662370045,4.57616,1639.3,1639.2,17.41639883]
[1693662370647,5.11915604,1639.4,1639.2,19.70461883]
[1693662371947,5.11915604,1639.4,1639.3,5.493]
[1693662372153,7.98631956,1639.4,1639.3,12.35724]
[1693662372950,5.11915604,1639.4,1639.3,12.35724]
[1693662373255,0.48215604,1639.4,1639.3,14.64532]
[1693662373454,6.86363,1639.5,1639.3,14.64532]
[1693662373455,4.57574,1639.5,1639.3,14.64532]
[1693662373651,4.57574,1639.5,1639.4,2.47163883]
[1693662373849,6.86367,1639.5,1639.4,9.33545883]
[1693662374247,2.2878,1639.5,1639.4,17.11639883]
[1693662374855,4.5756,1639.5,1639.4,17.11639883]
[1693662376751,5.0701181,1639.5,1639.4,17.11639883]
[1693662377151,7.93728162,1639.5,1639.4,17.11639883]
[1693662377958,10.28608162,1639.5,1639.4,10.06888]
[1693662378256,6.92482,1639.4,1639.3,12.35706]
[1693662380054,9.19475648,1639.4,1639.3,12.35706]
[1693662380354,9.19475648,1639.4,1639.3,10.06902]
[1693662380558,9.19475648,1639.4,1639.3,7.78099]
[1693662381261,9.19475648,1639.4,1639.3,10.06907]
[1693662381961,9.19475648,1639.4,1639.3,4.57607]
[1693662383252,12.86716352,1639.3,1638.8,4.57741]
[1693662383455,5.493,1639.0,1638.8,4.57741]
[1693662383655,9.73308352,1638.9,1638.8,4.57741]
[1693662383854,12.00302,1638.9,1638.8,4.57741]
[1693662385656,12.00302,1638.9,1638.8,4.77911235]
[1693662385851,7.78142,1639.1,1638.8,9.35667235]
[1693662386058,4.57689,1639.1,1638.9,5.493]
[1693662386260,4.57689,1639.1,1639.0,9.33713883]
[1693662387365,4.57689,1639.1,1639.0,14.83013883]
[1693662389164,7.44405352,1639.1,1639.0,12.56020235]
[1693662389465,4.57689,1639.1,1639.0,12.56020235]
[1693662392361,12.02091352,1639.1,1638.9,12.34010648]
[1693662392563,7.76293648,1639.0,1638.8,2.28871]
[1693662392765,6.86592,1638.9,1638.7,10.07066]
[1693662392964,9.73308352,1638.9,1638.7,10.07066]
[1693662393168,2.26993648,1638.8,1638.7,10.07066]
[1693662393364,9.13627648,1638.8,1638.7,10.07066]
[1693662394972,9.13627648,1638.8,1638.7,7.78182]
[1693662395565,11.42505648,1638.8,1638.7,5.493]
[1693662396667,11.48605648,1638.8,1638.7,5.493]
[1693662396871,0.061,1638.7,1638.6,9.24818]
[1693662397170,9.79492352,1638.7,1638.6,9.24818]
[1693662397873,6.92776,1638.7,1638.6,9.44988235]
[1693662399973,9.79492352,1638.7,1638.6,9.44988235]
[1693662400973,9.79492352,1638.7,1638.6,6.95916]
[1693662401764,12.08384352,1638.7,1638.5,14.89455]
[1693662401964,12.08384352,1638.7,1638.5,7.11242]
[1693662401965,2.26993648,1638.6,1638.5,7.11242]
[1693662402177,9.13711648,1638.6,1638.5,7.11242]
[1693662403264,9.13711648,1638.6,1638.5,4.82331]
[1693662404671,11.48717648,1638.6,1638.5,2.5342]
[1693662405372,11.48717648,1638.6,1638.4,12.36084]
[1693662405575,2.86716352,1638.5,1638.4,12.36084]
[1693662405774,9.73476352,1638.5,1638.4,6.86784]
[1693662407279,9.73476352,1638.5,1638.4,2.28926]
[1693662407280,9.79576352,1638.5,1638.4,2.28926]